Workbook

Sheet Artikelverkaufsbericht
B1: Artikelverkaufsbericht
B20: Artikel

Sheet Historische Daten
B1: Historische Artikelpreisliste und Verkäufe
B3: Produkt-ID | C3: Produktname | D3: Preisdatum | E3: Verkaufspreis pro Einheit | F3: Mengenpreis pro Einheit* | G3: Verkaufte Einheiten (einzeln) | H3: Verkaufte Einheiten (Mengen) | I3: Gesamtverkäufe (#) | J3: Gesamtverkäufe (€)
B4: 5 | C4: =IFERROR(IF('Historische Daten'!$B4<>"",VLOOKUP('Historische Daten'!$B$4:$B$33,tblProdukte[[Produkt-ID]:[Name]],2,FALSE),""),"Unbekannte Produkt-ID") -> Shorts | D4: 2012-01-01 | E4: 20 | F4: 20 € | G4: 629 | H4: 1,254 | I4: ='Historische Daten'!$G4+'Historische Daten'!$H4 -> 1,883 | J4: ='Historische Daten'!$G4*'Historische Daten'!$E4+'Historische Daten'!$H4*'Historische Daten'!$F4 -> 37,660 €
B5: 1 | C5: =IFERROR(IF('Historische Daten'!$B5<>"",VLOOKUP('Historische Daten'!$B$4:$B$33,tblProdukte[[Produkt-ID]:[Name]],2,FALSE),""),"Unbekannte Produkt-ID") -> Hemden | D5: 2012-01-01 | E5: 88 | F5: 54 € | G5: 734 | H5: 1,427 | I5: ='Historische Daten'!$G5+'Historische Daten'!$H5 -> 2,161 | J5: ='Historische Daten'!$G5*'Historische Daten'!$E5+'Historische Daten'!$H5*'Historische Daten'!$F5 -> 141,650 €
B6: 2 | C6: =IFERROR(IF('Historische Daten'!$B6<>"",VLOOKUP('Historische Daten'!$B$4:$B$33,tblProdukte[[Produkt-ID]:[Name]],2,FALSE),""),"Unbekannte Produkt-ID") -> Sandalen | D6: 2012-01-01 | E6: 70 | F6: 44 € | G6: 744 | H6: 1,043 | I6: ='Historische Daten'!$G6+'Historische Daten'!$H6 -> 1,787 | J6: ='Historische Daten'!$G6*'Historische Daten'!$E6+'Historische Daten'!$H6*'Historische Daten'!$F6 -> 97,972 €
B7: 3 | C7: =IFERROR(IF('Historische Daten'!$B7<>"",VLOOKUP('Historische Daten'!$B$4:$B$33,tblProdukte[[Produkt-ID]:[Name]],2,FALSE),""),"Unbekannte Produkt-ID") -> Schirme | D7: 2012-01-01 | E7: 63 | F7: 44 € | G7: 681 | H7: 1,523 | I7: ='Historische Daten'!$G7+'Historische Daten'!$H7 -> 2,204 | J7: ='Historische Daten'!$G7*'Historische Daten'!$E7+'Historische Daten'!$H7*'Historische Daten'!$F7 -> 109,915 €
B8: 4 | C8: =IFERROR(IF('Historische Daten'!$B8<>"",VLOOKUP('Historische Daten'!$B$4:$B$33,tblProdukte[[Produkt-ID]:[Name]],2,FALSE),""),"Unbekannte Produkt-ID") -> Trinkflaschen | D8: 2012-01-01 | E8: 35 | F8: 27 € | G8: 602 | H8: 1,822 | I8: ='Historische Daten'!$G8+'Historische Daten'!$H8 -> 2,424 | J8: ='Historische Daten'!$G8*'Historische Daten'!$E8+'Historische Daten'!$H8*'Historische Daten'!$F8 -> 70,264 €
B9: 1 | C9: =IFERROR(IF('Historische Daten'!$B9<>"",VLOOKUP('Historische Daten'!$B$4:$B$33,tblProdukte[[Produkt-ID]:[Name]],2,FALSE),""),"Unbekannte Produkt-ID") -> Hemden | D9: 2012-02-01 | E9: 55 | F9: 44 € | G9: 678 | H9: 1,515 | I9: ='Historische Daten'!$G9+'Historische Daten'!$H9 -> 2,193 | J9: ='Historische Daten'!$G9*'Historische Daten'!$E9+'Historische Daten'!$H9*'Historische Daten'!$F9 -> 103,950 €
B10: 2 | C10: =IFERROR(IF('Historische Daten'!$B10<>"",VLOOKUP('Historische Daten'!$B$4:$B$33,tblProdukte[[Produkt-ID]:[Name]],2,FALSE),""),"Unbekannte Produkt-ID") -> Sandalen | D10: 2012-02-01 | E10: 83 | F10: 54 € | G10: 753 | H10: 1,005 | I10: ='Historische Daten'!$G10+'Historische Daten'!$H10 -> 1,758 | J10: ='Historische Daten'!$G10*'Historische Daten'!$E10+'Historische Daten'!$H10*'Historische Daten'!$F10 -> 116,769 €
B11: 3 | C11: =IFERROR(IF('Historische Daten'!$B11<>"",VLOOKUP('Historische Daten'!$B$4:$B$33,tblProdukte[[Produkt-ID]:[Name]],2,FALSE),""),"Unbekannte Produkt-ID") -> Schirme | D11: 2012-02-01 | E11: 34 | F11: 34 € | G11: 986 | H11: 1,069 | I11: ='Historische Daten'!$G11+'Historische Daten'!$H11 -> 2,055 | J11: ='Historische Daten'!$G11*'Historische Daten'!$E11+'Historische Daten'!$H11*'Historische Daten'!$F11 -> 69,870 €
B12: 4 | C12: =IFERROR(IF('Historische Daten'!$B12<>"",VLOOKUP('Historische Daten'!$B$4:$B$33,tblProdukte[[Produkt-ID]:[Name]],2,FALSE),""),"Unbekannte Produkt-ID") -> Trinkflaschen | D12: 2012-02-01 | E12: 35 | F12: 25 € | G12: 848 | H12: 1,211 | I12: ='Historische Daten'!$G12+'Historische Daten'!$H12 -> 2,059 | J12: ='Historische Daten'!$G12*'Historische Daten'!$E12+'Historische Daten'!$H12*'Historische Daten'!$F12 -> 59,955 €
B13: 5 | C13: =IFERROR(IF('Historische Daten'!$B13<>"",VLOOKUP('Historische Daten'!$B$4:$B$33,tblProdukte[[Produkt-ID]:[Name]],2,FALSE),""),"Unbekannte Produkt-ID") -> Shorts | D13: 2012-02-01 | E13: 41 | F13: 38 € | G13: 980 | H13: 1,330 | I13: ='Historische Daten'!$G13+'Historische Daten'!$H13 -> 2,310 | J13: ='Historische Daten'!$G13*'Historische Daten'!$E13+'Historische Daten'!$H13*'Historische Daten'!$F13 -> 90,720 €
B14: 1 | C14: =IFERROR(IF('Historische Daten'!$B14<>"",VLOOKUP('Historische Daten'!$B$4:$B$33,tblProdukte[[Produkt-ID]:[Name]],2,FALSE),""),"Unbekannte Produkt-ID") -> Hemden | D14: 2012-02-29 | E14: 27 | F14: 18 € | G14: 533 | H14: 1,936 | I14: ='Historische Daten'!$G14+'Historische Daten'!$H14 -> 2,469 | J14: ='Historische Daten'!$G14*'Historische Daten'!$E14+'Historische Daten'!$H14*'Historische Daten'!$F14 -> 49,239 €
B15: 2 | C15: =IFERROR(IF('Historische Daten'!$B15<>"",VLOOKUP('Historische Daten'!$B$4:$B$33,tblProdukte[[Produkt-ID]:[Name]],2,FALSE),""),"Unbekannte Produkt-ID") -> Sandalen | D15: 2012-02-29 | E15: 38 | F15: 28 € | G15: 952 | H15: 1,512 | I15: ='Historische Daten'!$G15+'Historische Daten'!$H15 -> 2,464 | J15: ='Historische Daten'!$G15*'Historische Daten'!$E15+'Historische Daten'!$H15*'Historische Daten'!$F15 -> 78,512 €
B16: 3 | C16: =IFERROR(IF('Historische Daten'!$B16<>"",VLOOKUP('Historische Daten'!$B$4:$B$33,tblProdukte[[Produkt-ID]:[Name]],2,FALSE),""),"Unbekannte Produkt-ID") -> Schirme | D16: 2012-02-29 | E16: 92 | F16: 92 € | G16: 956 | H16: 1,266 | I16: ='Historische Daten'!$G16+'Historische Daten'!$H16 -> 2,222 | J16: ='Historische Daten'!$G16*'Historische Daten'!$E16+'Historische Daten'!$H16*'Historische Daten'!$F16 -> 204,424 €
B17: 4 | C17: =IFERROR(IF('Historische Daten'!$B17<>"",VLOOKUP('Historische Daten'!$B$4:$B$33,tblProdukte[[Produkt-ID]:[Name]],2,FALSE),""),"Unbekannte Produkt-ID") -> Trinkflaschen | D17: 2012-02-29 | E17: 43 | F17: 36 € | G17: 952 | H17: 1,390 | I17: ='Historische Daten'!$G17+'Historische Daten'!$H17 -> 2,342 | J17: ='Historische Daten'!$G17*'Historische Daten'!$E17+'Historische Daten'!$H17*'Historische Daten'!$F17 -> 90,976 €
B18: 5 | C18: =IFERROR(IF('Historische Daten'!$B18<>"",VLOOKUP('Historische Daten'!$B$4:$B$33,tblProdukte[[Produkt-ID]:[Name]],2,FALSE),""),"Unbekannte Produkt-ID") -> Shorts | D18: 2012-02-29 | E18: 98 | F18: 73 € | G18: 530 | H18: 1,452 | I18: ='Historische Daten'!$G18+'Historische Daten'!$H18 -> 1,982 | J18: ='Historische Daten'!$G18*'Historische Daten'!$E18+'Historische Daten'!$H18*'Historische Daten'!$F18 -> 157,936 €
B19: 1 | C19: =IFERROR(IF('Historische Daten'!$B19<>"",VLOOKUP('Historische Daten'!$B$4:$B$33,tblProdukte[[Produkt-ID]:[Name]],2,FALSE),""),"Unbekannte Produkt-ID") -> Hemden | D19: 2012-03-31 | E19: 38 | F19: 28 € | G19: 973 | H19: 1,415 | I19: ='Historische Daten'!$G19+'Historische Daten'!$H19 -> 2,388 | J19: ='Historische Daten'!$G19*'Historische Daten'!$E19+'Historische Daten'!$H19*'Historische Daten'!$F19 -> 76,594 €
B20: 2 | C20: =IFERROR(IF('Historische Daten'!$B20<>"",VLOOKUP('Historische Daten'!$B$4:$B$33,tblProdukte[[Produkt-ID]:[Name]],2,FALSE),""),"Unbekannte Produkt-ID") -> Sandalen | D20: 2012-03-31 | E20: 50 | F20: 36 € | G20: 672 | H20: 1,105 | I20: ='Historische Daten'!$G20+'Historische Daten'!$H20 -> 1,777 | J20: ='Historische Daten'!$G20*'Historische Daten'!$E20+'Historische Daten'!$H20*'Historische Daten'!$F20 -> 73,380 €
B21: 3 | C21: =IFERROR(IF('Historische Daten'!$B21<>"",VLOOKUP('Historische Daten'!$B$4:$B$33,tblProdukte[[Produkt-ID]:[Name]],2,FALSE),""),"Unbekannte Produkt-ID") -> Schirme | D21: 2012-03-31 | E21: 24 | F21: 23 € | G21: 769 | H21: 1,629 | I21: ='Historische Daten'!$G21+'Historische Daten'!$H21 -> 2,398 | J21: ='Historische Daten'!$G21*'Historische Daten'!$E21+'Historische Daten'!$H21*'Historische Daten'!$F21 -> 55,923 €
B22: 4 | C22: =IFERROR(IF('Historische Daten'!$B22<>"",VLOOKUP('Historische Daten'!$B$4:$B$33,tblProdukte[[Produkt-ID]:[Name]],2,FALSE),""),"Unbekannte Produkt-ID") -> Trinkflaschen | D22: 2012-03-31 | E22: 72 | F22: 57 € | G22: 985 | H22: 1,848 | I22: ='Historische Daten'!$G22+'Historische Daten'!$H22 -> 2,833 | J22: ='Historische Daten'!$G22*'Historische Daten'!$E22+'Historische Daten'!$H22*'Historische Daten'!$F22 -> 176,256 €
B23: 5 | C23: =IFERROR(IF('Historische Daten'!$B23<>"",VLOOKUP('Historische Daten'!$B$4:$B$33,tblProdukte[[Produkt-ID]:[Name]],2,FALSE),""),"Unbekannte Produkt-ID") -> Shorts | D23: 2012-03-31 | E23: 85 | F23: 43 € | G23: 721 | H23: 1,426 | I23: ='Historische Daten'!$G23+'Historische Daten'!$H23 -> 2,147 | J23: ='Historische Daten'!$G23*'Historische Daten'!$E23+'Historische Daten'!$H23*'Historische Daten'!$F23 -> 122,603 €
B24: 1 | C24: =IFERROR(IF('Historische Daten'!$B24<>"",VLOOKUP('Historische Daten'!$B$4:$B$33,tblProdukte[[Produkt-ID]:[Name]],2,FALSE),""),"Unbekannte Produkt-ID") -> Hemden | D24: 2012-04-30 | E24: 91 | F24: 65 € | G24: 603 | H24: 1,226 | I24: ='Historische Daten'!$G24+'Historische Daten'!$H24 -> 1,829 | J24: ='Historische Daten'!$G24*'Historische Daten'!$E24+'Historische Daten'!$H24*'Historische Daten'!$F24 -> 134,563 €
B25: 2 | C25: =IFERROR(IF('Historische Daten'!$B25<>"",VLOOKUP('Historische Daten'!$B$4:$B$33,tblProdukte[[Produkt-ID]:[Name]],2,FALSE),""),"Unbekannte Produkt-ID") -> Sandalen | D25: 2012-04-30 | E25: 91 | F25: 55 € | G25: 892 | H25: 1,823 | I25: ='Historische Daten'!$G25+'Historische Daten'!$H25 -> 2,715 | J25: ='Historische Daten'!$G25*'Historische Daten'!$E25+'Historische Daten'!$H25*'Historische Daten'!$F25 -> 181,437 €
B26: 3 | C26: =IFERROR(IF('Historische Daten'!$B26<>"",VLOOKUP('Historische Daten'!$B$4:$B$33,tblProdukte[[Produkt-ID]:[Name]],2,FALSE),""),"Unbekannte Produkt-ID") -> Schirme | D26: 2012-04-30 | E26: 42 | F26: 42 € | G26: 611 | H26: 1,181 | I26: ='Historische Daten'!$G26+'Historische Daten'!$H26 -> 1,792 | J26: ='Historische Daten'!$G26*'Historische Daten'!$E26+'Historische Daten'!$H26*'Historische Daten'!$F26 -> 75,264 €
B27: 4 | C27: =IFERROR(IF('Historische Daten'!$B27<>"",VLOOKUP('Historische Daten'!$B$4:$B$33,tblProdukte[[Produkt-ID]:[Name]],2,FALSE),""),"Unbekannte Produkt-ID") -> Trinkflaschen | D27: 2012-04-30 | E27: 85 | F27: 43 € | G27: 530 | H27: 1,039 | I27: ='Historische Daten'!$G27+'Historische Daten'!$H27 -> 1,569 | J27: ='Historische Daten'!$G27*'Historische Daten'!$E27+'Historische Daten'!$H27*'Historische Daten'!$F27 -> 89,727 €
B28: 5 | C28: =IFERROR(IF('Historische Daten'!$B28<>"",VLOOKUP('Historische Daten'!$B$4:$B$33,tblProdukte[[Produkt-ID]:[Name]],2,FALSE),""),"Unbekannte Produkt-ID") -> Shorts | D28: 2012-04-30 | E28: 82 | F28: 71 € | G28: 716 | H28: 1,249 | I28: ='Historische Daten'!$G28+'Historische Daten'!$H28 -> 1,965 | J28: ='Historische Daten'!$G28*'Historische Daten'!$E28+'Historische Daten'!$H28*'Historische Daten'!$F28 -> 147,391 €
B29: 1 | C29: =IFERROR(IF('Historische Daten'!$B29<>"",VLOOKUP('Historische Daten'!$B$4:$B$33,tblProdukte[[Produkt-ID]:[Name]],2,FALSE),""),"Unbekannte Produkt-ID") -> Hemden | D29: 2012-05-14 | E29: 34 | F29: 31 € | G29: 850 | H29: 1,548 | I29: ='Historische Daten'!$G29+'Historische Daten'!$H29 -> 2,398 | J29: ='Historische Daten'!$G29*'Historische Daten'!$E29+'Historische Daten'!$H29*'Historische Daten'!$F29 -> 76,888 €
B30: 2 | C30: =IFERROR(IF('Historische Daten'!$B30<>"",VLOOKUP('Historische Daten'!$B$4:$B$33,tblProdukte[[Produkt-ID]:[Name]],2,FALSE),""),"Unbekannte Produkt-ID") -> Sandalen | D30: 2012-05-14 | E30: 64 | F30: 40 € | G30: 876 | H30: 1,663 | I30: ='Historische Daten'!$G30+'Historische Daten'!$H30 -> 2,539 | J30: ='Historische Daten'!$G30*'Historische Daten'!$E30+'Historische Daten'!$H30*'Historische Daten'!$F30 -> 122,584 €
B31: 3 | C31: =IFERROR(IF('Historische Daten'!$B31<>"",VLOOKUP('Historische Daten'!$B$4:$B$33,tblProdukte[[Produkt-ID]:[Name]],2,FALSE),""),"Unbekannte Produkt-ID") -> Schirme | D31: 2012-05-14 | E31: 33 | F31: 30 € | G31: 881 | H31: 1,149 | I31: ='Historische Daten'!$G31+'Historische Daten'!$H31 -> 2,030 | J31: ='Historische Daten'!$G31*'Historische Daten'!$E31+'Historische Daten'!$H31*'Historische Daten'!$F31 -> 63,543 €
B32: 4 | C32: =IFERROR(IF('Historische Daten'!$B32<>"",VLOOKUP('Historische Daten'!$B$4:$B$33,tblProdukte[[Produkt-ID]:[Name]],2,FALSE),""),"Unbekannte Produkt-ID") -> Trinkflaschen | D32: 2012-05-14 | E32: 29 | F32: 27 € | G32: 802 | H32: 1,548 | I32: ='Historische Daten'!$G32+'Historische Daten'!$H32 -> 2,350 | J32: ='Historische Daten'!$G32*'Historische Daten'!$E32+'Historische Daten'!$H32*'Historische Daten'!$F32 -> 65,054 €
B33: 5 | C33: =IFERROR(IF('Historische Daten'!$B33<>"",VLOOKUP('Historische Daten'!$B$4:$B$33,tblProdukte[[Produkt-ID]:[Name]],2,FALSE),""),"Unbekannte Produkt-ID") -> Shorts | D33: 2013-12-11 | E33: 24 | F33: 15 € | G33: 824 | H33: 1,994 | I33: ='Historische Daten'!$G33+'Historische Daten'!$H33 -> 2,818 | J33: ='Historische Daten'!$G33*'Historische Daten'!$E33+'Historische Daten'!$H33*'Historische Daten'!$F33 -> 49,686 €

Sheet Preisliste
B1: Artikelpreisliste
B3: Adventure Works
B4: Ahornstraße 23456
B5: 77503 Musterstadt
B6: Telefon: (0123) 456-0100
B7: Fax: (0123) 456-0101
B8: www.adventure-works.com | F8: Letzte Aktualisierung: 15.08.2013
B10: Produkt-ID | C10: Name | D10: Beschreibung | E10: Verkaufspreis pro Einheit | F10: Mengenpreis pro Einheit*
B11: 1 | C11: Hemden | D11: Bleiben Sie den ganzen Sommer über cool – in unseren Hemden aus 100 % sanforisierter Baumwolle. | E11: 22 € | F11: 15.00 €
B12: 2 | C12: Sandalen | D12: Tragen Sie unsere Sandalen mit Spezialgummisohlen, und laufen Sie damit blasenfrei auf glühend heißem Sand. | E12: 10 € | F12: 6.00 €
B13: 3 | C13: Schirme | D13: Schützen Sie sich unter unserem extrabreiten Strandsonnenschirm vor der Sonne. Er lässt 96 % aller schädlichen UV-Strahlen nicht durch. | E13: 30 € | F13: 20.00 €
B14: 4 | C14: Trinkflaschen | D14: Kühlen Sie sich innerlich mit perfekt temperiertem Wasser aus unserer isolierten Trinkflasche. | E14: 7 € | F14: 5.00 €
B15: 5 | C15: Shorts | D15: Gehen Sie in unseren ultraschnell trocknenden Nylonshorts direkt aus dem Wasser zu Ihrem Auto. | E15: 15 € | F15: 8.00 €
F17: Fragen Sie uns nach nicht aufgeführten Artikeln.
F18: *Mengenpreise gelten für Mengen von mindestens 12 Einheiten.

Sheet Pivot Preispunkt (hidden)
B1: PivotTable "Preispunkt"
B2: Dieses Arbeitsblatt sollte ausgeblendet bleiben. Änderungen an der nachstehenden PivotTable können zu falschen Daten im Artikelverkaufsbericht führen.
B3: Ausgewählter Artikel: | C3: =IF(LEN(B5),B5,"None") -> Sandalen
B4: Produktname | C4: Verkaufspreis pro Einheit | D4: Summe der Gesamtverkäufe (#)
B5: Sandalen | C5: 38 € | D5: 2464
C6: 50 € | D6: 1777
C7: 64 € | D7: 2539
C8: 70 € | D8: 1787
C9: 83 € | D9: 1758
C10: 91 € | D10: 2715

Sheet Wiederhergestellt_Tabelle1 (hidden)
B1: PivotTable "Verkaufstrend"
B2: Dieses Arbeitsblatt sollte ausgeblendet bleiben. Änderungen an der nachstehenden PivotTable können zu falschen Daten im Artikelverkaufsbericht führen.
B3: Summe von Gesamtverkäufe (#) | C3: Produktname
B4: Preisdatum | C4: Sandalen
B5: Jan | C5: 1787
B6: Feb | C6: 4222
B7: Mrz | C7: 1777
B8: Apr | C8: 2715
B9: Mai | C9: 2539
